lending/lending_fUSD_20250808
["ID","MTS","AMOUNT","RATE_DAILY","PERIOD"]
[378006938,1754665856238,-1758.55,0.00019028,2]
[378006939,1754665856247,-151.0,0.00019028,2]
[378006940,1754665856257,-151.0,0.00019028,2]
[378006941,1754665856266,-504.28,0.00019028,2]
[378006942,1754665856275,-824.2,0.00019028,2]
[378006943,1754665856285,-151.0,0.00019028,2]
[378006944,1754665856295,-151.0,0.00019028,2]
[378006945,1754665856304,-1151.3,0.00019028,2]
[378006946,1754665856313,-194.659064,0.00019028,2]
[378006947,1754665856323,-400.0,0.00019028,2]
[378006948,1754665856332,-194.659064,0.00019028,2]
[378006949,1754665856341,-151.0,0.00019028,2]
[378006950,1754665856352,-1221.48,0.00019028,2]
[378006951,1754665856363,-151.0,0.00019028,2]
[378006952,1754665856372,-151.0,0.00019028,2]
[378006953,1754665856384,-665.51,0.00019028,2]
[378006954,1754665856394,-151.0,0.00019028,2]
[378006955,1754665856405,-176.990212,0.00019028,2]
[378006956,1754665856414,-874.41,0.00019028,2]
[378006957,1754665856424,-176.990212,0.00019028,2]
[378006958,1754665856433,-413.73,0.00019028,2]
[378006959,1754665856442,-151.0,0.00019028,2]
[378006960,1754665856451,-151.0,0.00019028,2]
[378006961,1754665856461,-1009.5,0.00019028,2]
[378006962,1754665856471,-202.3875066,0.00019028,2]
[378006963,1754665856481,-151.0,0.00019028,2]
[378006964,1754665856491,-400.0,0.00019028,2]
[378006965,1754665856500,-680.11,0.00019028,2]
[378006966,1754665856509,-151.0,0.00019028,2]
[378006967,1754665856520,-400.0,0.00019028,2]
[378006968,1754665856529,-771.541501,0.00019028,2]
[378006969,1754665856539,-400.0,0.00019028,2]
[378006970,1754665856549,-771.541501,0.00019028,2]
[378006971,1754665856559,-571.33,0.00019028,2]
[378006972,1754665856568,-151.0,0.00019028,2]
[378006973,1754665856577,-512.18,0.00019028,2]
[378006974,1754665856587,-151.0,0.00019028,2]
[378006975,1754665856596,-151.0,0.00019028,2]
[378006976,1754665856606,-515.23,0.00019028,2]
[378006977,1754665856615,-400.0,0.00019028,2]
[378006978,1754665856625,-400.0,0.00019028,2]
[378006979,1754665856637,-872.63,0.00019028,2]
[378006980,1754665856646,-151.0,0.00019028,2]
[378006981,1754665856656,-594.69,0.00019028,2]
[378006982,1754665856665,-1929.53,0.00019028,2]
[378006983,1754665856675,-1377.46,0.00019028,2]
[378006984,1754665856684,-2484.39,0.00019028,2]
[378006985,1754665856694,-368.599366,0.00019028,2]
[378006986,1754665856704,-509.4,0.00019028,2]
[378006987,1754665856714,-368.599366,0.00019028,2]
[378006988,1754665856725,-8140.84,0.00019028,2]
[378006989,1754665856734,-654.3,0.00019028,2]
[378006990,1754665856743,-2070.05,0.00019028,2]
[378006991,1754665856753,-1804.46,0.00019028,2]
[378006992,1754665856763,-255.832727,0.00019028,2]
[378006993,1754665856772,-2343.77,0.00019028,2]
[378006994,1754665856782,-531.78,0.00019028,2]
[378006995,1754665856791,-255.832727,0.00019028,2]
[378006996,1754665856801,-504.1,0.00019028,2]
[378006997,1754665856810,-2149.16,0.00019028,2]
[378006998,1754665856820,-177.967364,0.00019028,2]
[378006999,1754665856830,-5261.369985,0.00019028,2]
[378007000,1754665856839,-400.0,0.00019028,2]
[378007001,1754665856848,-5261.369985,0.00019028,2]
[378007002,1754665856857,-177.967364,0.00019028,2]
[378007003,1754665856867,-495.95,0.00019028,2]
[378007004,1754665856877,-554.41,0.00019028,2]
[378007005,1754665856886,-4671.67,0.00019028,2]
[378007006,1754665856896,-400.0,0.00019028,2]
[378007007,1754665856905,-1061.56,0.00019028,2]
[378007008,1754665856915,-1288.94,0.00019028,2]
[378007009,1754665856925,-1919.61,0.00019028,2]
[378007010,1754665856934,-658.81,0.00019028,2]
[378007011,1754665856944,-1740.88,0.00019028,2]
[378007012,1754665856954,-1822.11,0.00019028,2]
[378007013,1754665856963,-5622.92,0.00019028,2]
[378007014,1754665856973,-1193.67,0.00019028,2]
[378007015,1754665856982,-800.02,0.00019028,2]
[378007016,1754665856992,-151.0,0.00019028,2]
[378007017,1754665857001,-218.556623,0.00019028,2]
[378007018,1754665857010,-218.556623,0.00019028,2]
[378007019,1754665857019,-1485.12,0.00019028,2]
[378007020,1754665857029,-2726.91,0.00019028,2]
[378007021,1754665857038,-1609.87,0.00019028,2]
[378007022,1754665857049,-1781.37,0.00019028,2]
[378007023,1754665857058,-892.95,0.00019028,2]
[378007024,1754665857067,-178.807506,0.00019028,2]
[378007025,1754665857077,-4263.28,0.00019028,2]
[378007026,1754665857086,-178.807506,0.00019028,2]
[378007027,1754665857096,-400.0,0.00019028,2]
[378007028,1754665857105,-632.28,0.00019028,2]
[378007029,1754665857114,-476.08,0.00019028,2]
[378007030,1754665857123,-5283.43,0.00019028,2]
[378007031,1754665857133,-603.86,0.00019028,2]
[378007032,1754665857142,-1370.93,0.00019028,2]
[378007033,1754665857152,-654.87,0.00019028,2]
[378007034,1754665857162,-203.618454,0.00019028,2]
[378007035,1754665857172,-662.57,0.00019028,2]
[378007036,1754665857181,-203.618454,0.00019028,2]
[378007037,1754665857191,-1612.6,0.00019028,2]
[378007038,1754665857200,-16809.6,0.00019028,2]
[378007039,1754665857209,-626.82,0.00019028,2]
[378007040,1754665857219,-151.0,0.00019028,2]
[378007041,1754665857229,-595.78,0.00019028,2]
[378007042,1754665857238,-151.0,0.00019028,2]
[378007043,1754665857248,-151.0,0.00019028,2]
[378007044,1754665857258,-445.55,0.00019028,2]
[378007045,1754665857267,-151.0,0.00019028,2]
[378007046,1754665857277,-440.64,0.00019028,2]
[378007047,1754665857286,-400.0,0.00019028,2]
[378007048,1754665857297,-1523.12,0.00019028,2]
[378007049,1754665857307,-469.66,0.00019028,2]
[378007050,1754665857318,-2837.61,0.00019028,2]
[378007051,1754665857327,-1107.69,0.00019028,2]
[378007052,1754665857336,-1566.58,0.00019028,2]
[378007053,1754665857346,-151.0,0.00019028,2]
[378007054,1754665857356,-1777.7,0.00019028,2]
[378007055,1754665857365,-1528.48,0.00019028,2]
[378007056,1754665857375,-452.76,0.00019028,2]
[378007057,1754665857386,-151.0,0.00019029,2]
[378007058,1754665857395,-151.0,0.00019029,2]
[378007059,1754665857405,-151.0,0.00019029,2]
[378007060,1754665857414,-151.0,0.00019029,2]
[378007061,1754665857423,-151.0,0.00019029,2]
[378007062,1754665857433,-200.631943,0.00019029,2]
[378007063,1754665857443,-399.572307,0.00019029,2]
[378007064,1754665857452,-399.572307,0.00019029,2]
[378007065,1754665857461,-151.0,0.00019029,2]
[378007066,1754665857471,-151.0,0.00019029,2]
[378007067,1754665857480,-151.0,0.00019029,2]
[378007068,1754665857489,-205.32114,0.00019029,2]
[378007069,1754665857500,-205.32114,0.00019029,2]
[378007070,1754665857510,-151.0,0.00019029,2]
[378007071,1754665857519,-151.0,0.00019029,2]
[378007072,1754665857530,-151.0,0.00019029,2]
[378007073,1754665857540,-151.0,0.00019029,2]
[378007074,1754665857551,-188.393509,0.00019029,2]
[378007075,1754665857561,-188.393509,0.00019029,2]
[378007076,1754665857570,-151.0,0.00019029,2]
[378007077,1754665857579,-151.0,0.00019029,2]
[378007078,1754665857588,-400.0,0.00019029,2]
[378007079,1754665857598,-151.0,0.00019029,2]
[378007080,1754665857607,-151.0,0.00019029,2]
[378007081,1754665857617,-294.672971,0.00019029,2]
[378007082,1754665857626,-294.672971,0.00019029,2]
[378007083,1754665857637,-151.0,0.00019029,2]
[378007084,1754665857648,-2001.05,0.00019029,2]
[378007085,1754665857658,-400.0,0.00019029,2]
[378007086,1754665857667,-574.4,0.00019029,2]
[378007087,1754665857677,-400.0,0.00019029,2]
[378007088,1754665857686,-151.0,0.00019029,2]
[378007089,1754665857696,-151.0,0.00019029,2]
[378007090,1754665857705,-1650.03,0.00019029,2]
[378007091,1754665857715,-151.0,0.00019029,2]
[378007092,1754665857724,-897.62,0.00019029,2]
[378007093,1754665857733,-528.95,0.00019029,2]
[378007094,1754665857742,-151.0,0.00019029,2]
[378007095,1754665857752,-151.0,0.00019029,2]
[378007096,1754665857761,-400.0,0.00019029,2]
[378007097,1754665857770,-400.0,0.00019029,2]
[378007098,1754665857780,-151.0,0.00019029,2]
[378007099,1754665857789,-151.0,0.00019029,2]
[378007100,1754665857801,-205.060063,0.00019029,2]
[378007101,1754665857810,-4238.78,0.00019029,2]
[378007102,1754665857820,-151.0,0.00019029,2]
[378007103,1754665857829,-151.0,0.00019029,2]
[378007104,1754665857842,-151.0,0.00019029,2]
[378007105,1754665857852,-2140.87,0.00019029,2]
[378007106,1754665857861,-1279.58,0.00019029,2]
[378007107,1754665857871,-3745.72,0.00019029,2]
[378007108,1754665857881,-151.0,0.00019029,2]
[378007109,1754665857890,-1142.58,0.00019029,2]
[378007110,1754665857900,-1000.0,0.00019029,2]
[378007111,1754665857909,-2647.29,0.00019029,2]
[378007112,1754665857918,-5081.99,0.00019029,2]
[378007113,1754665857927,-400.0,0.00019029,2]
[378007114,1754665857937,-4075.89,0.00019029,2]
[378007115,1754665857946,-3428.61,0.00019029,2]
[378007116,1754665857956,-888.103447,0.00019029,2]
[378007117,1754665857965,-888.103447,0.00019029,2]
[378007118,1754665857975,-207.093604,0.00019029,2]
[378007119,1754665857984,-3823.96,0.00019029,2]
[378007120,1754665857994,-5238.54,0.00019029,2]
[378007121,1754665858003,-151.0,0.00019029,2]
[378007122,1754665858013,-10172.64,0.00019029,2]
[378007123,1754665858022,-6215.17,0.00019029,2]
[378007124,1754665858032,-253.951013,0.0001903,2]
[378007125,1754665858041,-151.0,0.0001903,2]
[378007126,1754665858054,-151.0,0.0001903,2]
[378007127,1754665858064,-151.0,0.0001903,2]
[378007128,1754665858074,-167.211965,0.0001903,2]
[378007129,1754665858084,-219.037494,0.0001903,2]
[378007130,1754665858093,-151.0,0.0001903,2]
[378007131,1754665858103,-151.0,0.0001903,2]
[378007132,1754665858112,-151.0,0.0001903,2]
[378007133,1754665858122,-151.0,0.0001903,2]
[378007134,1754665858131,-151.0,0.0001903,2]
[378007135,1754665858141,-151.0,0.0001903,2]
[378007136,1754665858151,-151.0,0.0001903,2]
[378007137,1754665858160,-153.901736,0.0001903,2]
[378007138,1754665858170,-151.0,0.0001903,2]
[378007139,1754665858179,-151.0,0.0001903,2]
[378007140,1754665858188,-151.0,0.0001903,2]
[378007141,1754665858198,-194.659064,0.0001903,2]
[378007142,1754665858282,-194.659064,0.0001903,2]
[378007143,1754665858291,-188.167232,0.0001903,2]
[378007144,1754665858302,-176.990212,0.0001903,2]
[378007145,1754665858312,-176.990212,0.0001903,2]
[378007146,1754665858331,-151.0,0.0001903,2]
[378007147,1754665858350,-771.541501,0.0001903,2]
[378007148,1754665858361,-771.541501,0.0001903,2]
[378007149,1754665858371,-151.0,0.0001903,2]
[378007150,1754665858380,-151.0,0.00019031,2]
[378007151,1754665858390,-151.0,0.00019031,2]
[378007152,1754665858399,-151.0,0.00019032,2]
[378007153,1754665858409,-297.963499,0.00019032,2]
[378007154,1754665858418,-151.0,0.00019032,2]
[378007155,1754665858427,-151.0,0.00019032,2]
[378007156,1754665858437,-171.737048,0.00019032,2]
[378007157,1754665858446,-151.0,0.00019032,2]
[378007158,1754665858455,-151.0,0.00019032,2]
[378007159,1754665858465,-151.0,0.00019032,2]
[378007160,1754665858474,-151.0,0.00019032,2]
[378007161,1754665858483,-151.0,0.00019032,2]
[378007162,1754665858493,-151.0,0.00019032,2]
[378007163,1754665858502,-151.0,0.00019032,2]
[378007164,1754665858511,-151.0,0.00019032,2]
[378007165,1754665858520,-151.0,0.00019032,2]
[378007166,1754665858529,-406.416501,0.00019032,2]
[378007167,1754665858538,-406.416501,0.00019032,2]
[378007168,1754665858549,-150.0,0.00019035,2]
[378007169,1754665858558,-500.0,0.00019035,2]
[378007170,1754665858567,-500.0,0.00019035,2]
[378007171,1754665858576,-1147.74,0.00019046,2]
[378007172,1754665858585,-400.0,0.00019046,2]
[378007173,1754665858594,-1506.21,0.00019046,2]
[378007174,1754665858603,-400.0,0.00019047,2]
[378007175,1754665858612,-406.77,0.00019047,2]
[378007176,1754665858621,-400.0,0.00019047,2]
[378007177,1754665858632,-418.67,0.00019047,2]
[378007178,1754665858643,-639.76,0.00019047,2]
[378007179,1754665858652,-400.0,0.00019047,2]
[378007180,1754665858662,-680.27,0.00019047,2]
[378007181,1754665858672,-400.0,0.00019047,2]
[378007182,1754665858683,-1037.97,0.00019047,2]
[378007183,1754665858692,-400.0,0.00019047,2]
[378007184,1754665858701,-400.0,0.00019047,2]
[378007185,1754665858711,-400.0,0.00019047,2]
[378007186,1754665858720,-400.0,0.00019047,2]
[378007187,1754665858730,-400.0,0.00019047,2]
[378007188,1754665858739,-643.63,0.00019047,2]
[378007189,1754665858749,-469.85,0.00019047,2]
[378007190,1754665858759,-400.0,0.00019047,2]
[378007191,1754665858768,-495.04,0.00019047,2]
[378007192,1754665858777,-834.26,0.00019047,2]
[378007193,1754665858787,-300.87713254,0.00019047,2]
[378007194,1754665858796,-1082.64,0.00019047,2]
[378007195,1754665858805,-400.0,0.00019047,2]
[378007196,1754665858814,-400.0,0.00019047,2]
[378007197,1754665858824,-1314.05,0.00019047,2]
[378007198,1754665858833,-400.0,0.00019047,2]
[378007199,1754665858843,-354.11033762,0.00019047,2]
[378007200,1754665858852,-248.96,0.00019047,2]
[378007201,1754665858862,-400.0,0.00019047,2]
[378007202,1754665858872,-400.0,0.00019047,2]
[378007203,1754665858882,-435.51,0.00019047,2]
[378007204,1754665858891,-400.0,0.00019047,2]
[378007205,1754665858902,-400.0,0.00019047,2]
[378007206,1754665858911,-1056.5,0.00019047,2]
[378007207,1754665858921,-506.54,0.00019047,2]
[378007208,1754665858931,-640.77,0.00019047,2]
[378007209,1754665858940,-409.28,0.00019047,2]
[378007210,1754665858950,-605.96,0.00019047,2]
[378007211,1754665858960,-426.37,0.00019047,2]
[378007212,1754665858970,-400.0,0.00019047,2]
[378007213,1754665858979,-400.0,0.00019047,2]
[378007214,1754665858990,-400.0,0.00019047,2]
[378007215,1754665858999,-1344.72,0.00019047,2]
[378007216,1754665859009,-400.0,0.00019047,2]
[378007217,1754665859018,-400.0,0.00019047,2]
[378007218,1754665859029,-400.0,0.00019047,2]
[378007219,1754665859040,-400.0,0.00019047,2]
[378007220,1754665859049,-741.27,0.00019047,2]
[378007221,1754665859058,-419.32,0.00019047,2]
[378007222,1754665859067,-1048.94,0.00019047,2]
[378007223,1754665859077,-421.24,0.00019047,2]
[378007224,1754665859086,-400.0,0.00019047,2]
[378007225,1754665859096,-636.47,0.00019047,2]
[378007226,1754665859105,-1559.71,0.00019047,2]
[378007227,1754665859113,-400.0,0.00019047,2]
[378007228,1754665859124,-488.29,0.00019047,2]
[378007229,1754665859134,-582.23,0.00019047,2]
[378007230,1754665859144,-400.0,0.00019047,2]
[378007231,1754665859153,-1131.21,0.00019047,2]
[378007232,1754665859162,-400.0,0.00019047,2]
[378007233,1754665859171,-400.0,0.00019047,2]
[378007234,1754665859180,-400.0,0.00019047,2]
[378007235,1754665859189,-498.79,0.00019047,2]
[378007236,1754665859198,-412.19,0.00019047,2]
[378007237,1754665859207,-1493.88,0.00019047,2]
[378007238,1754665859216,-478.7,0.00019047,2]
[378007239,1754665859225,-400.0,0.00019047,2]
[378007240,1754665859235,-400.0,0.00019047,2]
[378007241,1754665859244,-400.0,0.00019047,2]
[378007242,1754665859253,-400.0,0.00019047,2]
[378007243,1754665859263,-400.0,0.00019047,2]
[378007244,1754665859272,-878.26,0.00019047,2]
[378007245,1754665859282,-852.63,0.00019047,2]
[378007246,1754665859291,-400.0,0.00019047,2]
[378007247,1754665859302,-400.0,0.00019047,2]
[378007248,1754665859311,-400.0,0.00019047,2]
[378007249,1754665859320,-1151.07,0.00019047,2]
[378007250,1754665859329,-400.0,0.00019047,2]
[378007251,1754665859338,-400.0,0.00019047,2]
[378007252,1754665859347,-400.0,0.00019047,2]
[378007253,1754665859356,-400.0,0.00019047,2]
[378007254,1754665859365,-400.0,0.00019047,2]
[378007255,1754665859374,-400.0,0.00019047,2]
[378007256,1754665859384,-400.0,0.00019047,2]
[378007257,1754665859393,-1189.03,0.00019047,2]
[378007258,1754665859403,-400.0,0.00019047,2]
[378007259,1754665859412,-400.0,0.00019047,2]
[378007260,1754665859421,-400.0,0.00019047,2]
[378007261,1754665859430,-400.0,0.00019047,2]
[378007262,1754665859439,-400.0,0.00019047,2]
[378007263,1754665859448,-400.0,0.00019047,2]
[378007264,1754665859457,-400.0,0.00019047,2]
[378007265,1754665859466,-400.0,0.00019047,2]
[378007266,1754665859476,-2092.47,0.00019047,2]
[378007267,1754665859484,-400.0,0.00019047,2]
[378007268,1754665859494,-400.0,0.00019047,2]
[378007269,1754665859503,-400.0,0.00019047,2]
[378007270,1754665859513,-310.66299687,0.00019047,2]
[378007271,1754665859522,-496.27,0.00019047,2]
[378007272,1754665859531,-454.2,0.00019047,2]
[378007273,1754665859540,-400.0,0.00019047,2]
[378007274,1754665859550,-1142.29,0.00019047,2]
[378007275,1754665859559,-670.13,0.00019047,2]
[378007276,1754665859568,-2302.35,0.00019047,2]
[378007277,1754665859578,-662.54,0.00019047,2]
[378007278,1754665859587,-400.0,0.00019047,2]
[378007279,1754665859597,-400.0,0.00019047,2]
[378007280,1754665859606,-400.0,0.00019047,2]
[378007281,1754665859615,-605.62,0.00019047,2]
[378007282,1754665859624,-432.65,0.00019047,2]
[378007283,1754665859637,-699.18,0.00019047,2]
[378007284,1754665859647,-454.4,0.00019047,2]
[378007285,1754665859656,-400.0,0.00019047,2]
[378007286,1754665859665,-460.62,0.00019047,2]
[378007287,1754665859674,-400.0,0.00019047,2]
[378007288,1754665859685,-400.0,0.00019047,2]
[378007289,1754665859695,-400.0,0.00019047,2]
[378007290,1754665859705,-400.0,0.00019047,2]
[378007291,1754665859716,-1003.64,0.00019047,2]
[378007292,1754665859726,-400.0,0.00019047,2]
[378007293,1754665859735,-475.98,0.00019047,2]
[378007294,1754665859745,-450.88,0.00019047,2]
[378007295,1754665859755,-428.3,0.00019047,2]
[378007296,1754665859764,-485.3,0.00019047,2]
[378007297,1754665859774,-1113.86,0.00019047,2]
[378007298,1754665859783,-833.67,0.00019047,2]
[378007299,1754665859793,-400.92,0.00019047,2]
[378007300,1754665859807,-400.0,0.00019047,2]
[378007301,1754665859817,-400.0,0.00019047,2]
[378007302,1754665859826,-826.02,0.00019047,2]
[378007303,1754665859836,-490.97,0.00019047,2]
[378007304,1754665859845,-684.28,0.00019047,2]
[378007305,1754665859855,-1125.99,0.00019047,2]
[378007306,1754665859863,-414.74,0.00019047,2]
[378007307,1754665859873,-576.92,0.00019047,2]
[378007308,1754665859882,-504.74,0.00019047,2]
[378007309,1754665859891,-400.0,0.00019047,2]
[378007310,1754665859901,-794.31,0.00019047,2]
[378007311,1754665859911,-400.0,0.00019047,2]
[378007312,1754665859920,-400.0,0.00019047,2]
[378007313,1754665859929,-1644.44,0.00019047,2]
[378007314,1754665859938,-400.0,0.00019047,2]
[378007315,1754665859947,-400.0,0.00019047,2]
[378007316,1754665859956,-1479.1,0.00019047,2]
[378007317,1754665859965,-400.0,0.00019047,2]
[378007318,1754665859974,-1392.26,0.00019047,2]
[378007319,1754665859983,-487.25,0.00019047,2]
[378007320,1754665859992,-400.0,0.00019047,2]
[378007321,1754665860002,-827.27,0.00019047,2]
[378007322,1754665860011,-3663.05,0.00019047,2]
[378007323,1754665860021,-1694.31,0.00019047,2]
[378007324,1754665860030,-1134.91,0.00019047,2]
[378007325,1754665860040,-569.53,0.00019047,2]
[378007326,1754665860053,-400.0,0.00019047,2]
[378007327,1754665860063,-400.0,0.00019047,2]
[378007328,1754665860073,-1604.55,0.00019047,2]
[378007329,1754665860082,-400.0,0.00019047,2]
[378007330,1754665860092,-1726.2,0.00019047,2]
[378007331,1754665860101,-400.0,0.00019047,2]
[378007332,1754665860111,-1635.03,0.00019047,2]
[378007333,1754665860120,-4209.07,0.00019047,2]
[378007334,1754665860129,-7336.42,0.00019047,2]
[378007335,1754665860139,-400.0,0.00019047,2]
[378007336,1754665860148,-474.76,0.00019047,2]
[378007337,1754665860157,-400.0,0.00019047,2]
[378007338,1754665860166,-316.11476293,0.00019047,2]
[378007339,1754665860177,-1402.19,0.00019047,2]
[378007340,1754665860185,-1230.28,0.00019047,2]
[378007341,1754665860196,-2130.07,0.00019047,2]
[378007342,1754665860205,-400.0,0.00019047,2]
[378007343,1754665860214,-400.0,0.00019047,2]
[378007344,1754665860224,-400.0,0.00019047,2]
[378007345,1754665860242,-400.0,0.00019047,2]
[378007346,1754665860257,-2025.14,0.00019047,2]
[378007347,1754665860266,-628.07,0.00019047,2]
[378007348,1754665860275,-688.33,0.00019047,2]
[378007349,1754665860286,-400.0,0.00019047,2]
[378007350,1754665860299,-400.0,0.00019047,2]
[378007351,1754665860308,-612.57,0.00019047,2]
[378007352,1754665860317,-483.07,0.00019047,2]
[378007353,1754665860326,-3210.22,0.00019047,2]
[378007354,1754665860335,-531.47,0.00019047,2]
[378007355,1754665860345,-400.0,0.00019047,2]
[378007356,1754665860354,-5188.28,0.00019047,2]
[378007357,1754665860363,-1541.01,0.00019047,2]
[378007358,1754665860373,-5876.12,0.00019047,2]
[378007359,1754665860382,-400.0,0.00019047,2]
[378007360,1754665860393,-513.95,0.00019047,2]
[378007361,1754665860402,-400.0,0.00019047,2]
[378007362,1754665860411,-400.0,0.00019047,2]
[378007363,1754665860421,-420.86,0.00019047,2]
[378007364,1754665860430,-1585.22,0.00019047,2]
[378007365,1754665860439,-400.0,0.00019047,2]
[378007366,1754665860449,-4259.87,0.00019047,2]
[378007367,1754665860458,-400.0,0.00019047,2]
[378007368,1754665860467,-8121.87,0.00019047,2]
[378007369,1754665860477,-400.0,0.00019047,2]
[378007370,1754665860486,-400.0,0.00019047,2]
[378007371,1754665860495,-1121.8,0.00019047,2]
[378007372,1754665860505,-1476.09,0.00019047,2]
[378007373,1754665860514,-644.13,0.00019047,2]
[378007374,1754665860523,-575.11,0.00019047,2]
[378007375,1754665860532,-6057.34,0.00019047,2]
[378007376,1754665860541,-619.05,0.00019047,2]
[378007377,1754665860554,-528.46,0.00019047,2]
[378007378,1754665860563,-6693.11,0.00019047,2]
[378007379,1754665860572,-1345.7,0.00019047,2]
[378007380,1754665860582,-1709.16,0.00019047,2]
[378007381,1754665860591,-1291.02,0.00019047,2]
[378007382,1754665860600,-1813.43,0.00019047,2]
[378007383,1754665860609,-422.85,0.00019047,2]
[378007384,1754665860618,-400.0,0.00019047,2]
[378007385,1754665860628,-2167.73,0.00019047,2]
[378007386,1754665860640,-400.0,0.00019047,2]
[378007387,1754665860649,-652.0,0.00019047,2]
[378007388,1754665860658,-400.0,0.00019047,2]
[378007389,1754665860668,-400.0,0.00019047,2]
[378007390,1754665860677,-1469.15,0.00019047,2]
[378007391,1754665860687,-646.71,0.00019047,2]
[378007392,1754665860696,-563.16,0.00019047,2]
[378007393,1754665860705,-1310.0,0.00019047,2]
[378007394,1754665860714,-824.19,0.00019047,2]
[378007395,1754665860723,-609.49,0.00019047,2]
[378007396,1754665860732,-400.0,0.00019047,2]
[378007397,1754665860742,-9554.86,0.00019047,2]
[378007398,1754665860751,-1273.12,0.00019047,2]
[378007399,1754665860761,-1930.11,0.00019047,2]
[378007400,1754665860771,-400.0,0.00019047,2]
[378007401,1754665860780,-4202.88,0.00019047,2]
[378007402,1754665860790,-469.3,0.00019047,2]
[378007403,1754665860802,-6401.52,0.00019047,2]
[378007404,1754665860811,-400.0,0.00019047,2]
[378007405,1754665860820,-400.0,0.00019047,2]
[378007406,1754665860830,-400.0,0.00019047,2]
[378007407,1754665860839,-643.68,0.00019047,2]
[378007408,1754665860848,-400.0,0.00019047,2]
[378007409,1754665860857,-1810.41,0.00019047,2]
[378007410,1754665860866,-1108.42,0.00019047,2]
[378007411,1754665860875,-569.88,0.00019047,2]
[378007412,1754665860885,-400.0,0.00019047,2]
[378007413,1754665860895,-828.43,0.00019047,2]
[378007414,1754665860904,-400.0,0.00019047,2]
[378007415,1754665860914,-5768.73,0.00019047,2]
[378007416,1754665860924,-498.93,0.00019047,2]
[378007417,1754665860937,-603.11,0.00019047,2]
[378007418,1754665860946,-5374.73,0.00019047,2]
[378007419,1754665860955,-400.0,0.00019047,2]
[378007420,1754665860964,-151.0,0.00019047,2]
[378007421,1754665860974,-817.89,0.00019047,2]
[378007422,1754665860983,-5381.91,0.00019047,2]
[378007423,1754665860992,-514.29,0.00019047,2]
[378007424,1754665861002,-3846.97,0.00019047,2]
[378007425,1754665861011,-1228.87,0.00019047,2]
[378007426,1754665861020,-400.0,0.00019047,2]
[378007427,1754665861029,-400.0,0.00019047,2]
[378007428,1754665861038,-400.0,0.00019047,2]
[378007429,1754665861053,-4234.54,0.00019047,2]
[378007430,1754665861062,-400.0,0.00019047,2]
[378007431,1754665861071,-887.14,0.00019047,2]
[378007432,1754665861080,-400.0,0.00019047,2]
[378007433,1754665861089,-300.0,0.00019055,2]
[378007434,1754665861099,-1141.47260505,0.00019056,2]
[378007435,1754665861108,-503.89309389,0.00019073,2]
[378007436,1754665861118,-500.0,0.00019073,2]
[378007437,1754665861128,-500.0,0.00019073,2]